Cogmind - Beta 16.1 @@@ ROGUE MODE // 2026.03.12 @ 11:55:32 Player: parasect Result: Destroyed by 61-GVP(R) with Subdweller Laser Performance ------------- Evolutions (0) 0 Regions Visited (2) 400 Robots Destroyed (50) 250 Value Destroyed (1178) 1178 Prototype IDs (14) 280 Alien Tech Used (0) 0 Bonus (0) 0 TOTAL SCORE: 2108 Bonus ------- None Cogmind --------- Core Integrity 0/250 Matter 227/300 Energy 155/160 System Corruption 0% Temperature Cool (73) Movement Rolling (125) Ox3 Location -10/Subcaves Parts ------- > --- POWER (1) -------- Light Nuclear Core > --- PROPULSION (2) --- Wheel Subdweller Monowheel > --- UTILITY (2) ------ Scrap Shield > --- WEAPON (2) ------- Advanced Beam Cannon Subdweller Beam Cannon > --- INVENTORY (5) ---- Seismic Detector Advanced Beam Cannon Grenade Launcher Subdweller Shrapnel Launcher Multitool Peak State ------------ > --- POWER ------------ Light Nuclear Core > --- PROPULSION ------- Subdweller Monowheel Subdweller Monowheel > --- UTILITY ---------- Medium Storage Unit Core Shielding > --- WEAPON ----------- Advanced Beam Cannon Subdweller Beam Cannon > --- INVENTORY -------- Makeshift Power Source Improved Heat Sink Seismic Detector Tower Shield Hacking Suite Advanced Beam Cannon Grenade Launcher Subdweller Shrapnel Launcher Multitool [Rating: 17] Favorites ----------- Power Ion Engine Engine Ion Engine Power Core Light Nuclear Core Propulsion Light Treads Treads Light Treads Leg Aluminum Leg Wheel Subdweller Monowheel Utility Seismic Detector Device Seismic Detector Storage Medium Storage Unit Protection Core Shielding Weapon Advanced Beam Cannon Energy Gun Heavy EM Pulse Gun Energy Cannon Advanced Beam Cannon Ballistic Gun Light Assault Rifle Launcher Grenade Launcher Special Weapon Multitool Build | -11 -10 -10 ------- Run | Yrd Mat Sub Slots Evolved . | . . . Power . | . . . Propulsion . | . . . Utility . | . . . Weapon . | . . . Parts Attached 37 | 4 17 16 Power 6 | 1 2 3 Engine 5 | 1 2 2 Core 1 | . . 1 Reactor . | . . . Propulsion 11 | 2 3 6 Treads 5 | 2 2 1 Leg . | . . . Wheel 6 | . 1 5 Hover . | . . . Flight . | . . . Utility 9 | 1 6 2 Device 3 | 1 2 . Storage 3 | . 3 . Processor . | . . . Hackware . | . . . Protection 3 | . 1 2 Artifact . | . . . Weapon 11 | . 6 5 Energy Gun 5 | . 3 2 Energy Cannon 3 | . 2 1 Ballistic Gun . | . . . Ballistic Cannon . | . . . Launcher 2 | . 1 1 Special Weapon 1 | . . 1 Impact Weapon . | . . . Slashing Weapon . | . . . Piercing Weapon . | . . . Special Melee Weapon . | . . . Unidentified Prototypes 1 | . 1 . Parts Lost 6 | . . 6 Power . | . . . Propulsion 4 | . . 4 Utility . | . . . Weapon 2 | . . 2 Highest Loss Streak 3 | . . 3 To Critical Strikes 1 | . . 1 Average Backups 8 | 6 7 8 Power 1 | . . 1 Propulsion 1 | 4 2 . Utility 2 | . 2 3 Weapon 2 | 1 2 3 Tool/Special . | . . . Unused Backups 15 | . 9 6 Power 2 | . 1 1 Propulsion 3 | . 3 . Utility 2 | . . 2 Weapon 8 | . 5 3 Tool/Special . | . . . Average Slot Usage (%) 99 | . 99 98 Engine 11 | . 14 7 Core 2 | . . 6 Treads 19 | . 28 10 Wheel 8 | . . 17 Device 9 | . 13 5 Storage 13 | . 13 13 Protection 4 | . . 8 Energy Gun 4 | . 3 4 Energy Cannon 18 | . 16 21 Ballistic Gun 4 | . 7 . Peak Build Rating 17 | 7 14 17 Average Rating 12 | 6 10 14 On Entrance 8 | 6 7 13 Avg Prop Armor Cover (%) 11 | . 12 2 Naked Turns . | . . . Heaviest Build 35 | 13 24 35 Greatest Support 40 | 40 40 40 Greatest Overweight (x) 4 | . 4 3 Average Overweight (x) . | . . . Largest Inventory Capacity 10 | 8 10 10 Average Capacity 8 | 8 8 9 Most Carried 10 | 7 10 10 Average Carried 8 | 6 7 9 Final Capacity 10 | 8 10 5 Final Carried 10 | 7 10 5 Class Distribution -------------------- 56% | Mutant 40% | Scavenger-Mutant 3% | Subdweller-Mutant Dominant Class ---------------- Mutant | -10/Materials Scavenger-Mutant | -10/Subcaves Resources | -11 -10 -10 ----------- Run | Yrd Mat Sub Matter Collected 1492 | 288 522 682 Remotely . | . . . Salvage Created 1653 | 172 692 789 Parts 125 | 19 44 62 Haulers Intercepted 2 | . 2 . Recyclers Shooed 1 | . 1 . Parts Field Recycled . | . . . Retrieved Matter . | . . . Parts Self-Destructed 22 | . . 22 Prevented . | . . . Parts Restored . | . . . Kills | -11 -10 -10 ------- Run | Yrd Mat Sub Combat Hostiles Destroyed 34 | . 17 17 Guns 11 | . 8 3 Cannons 13 | . 6 7 AOE 10 | . 3 7 Classes Destroyed 12 | 3 5 4 Worker 2 | 2 . . Tunneler 5 | 5 . . Hauler 2 | . 2 . Recycler 2 | 1 1 . Operator 1 | . 1 . Turret 2 | . . 2 Watcher 2 | . 2 . Swarmer 10 | . 6 4 Grunt 11 | . 11 . Artisan 1 | . . 1 Cobbler 1 | . . 1 Subdweller 13 | . . 13 Best Kill Streak 6 | 5 4 6 Combat Bots Only 4 | . 3 4 Max Kills in Single Turn 2 | 1 2 2 Gunslinging . | . . . Exploded 2 | . 2 2 Melee . | . . . Uniques/NPCs Destroyed . | . . . Combat | -11 -10 -10 -------- Run | Yrd Mat Sub Hostile Shots Fired 146 | . 58 88 Missed 49 | . 14 35 Hits 97 | . 44 53 Projectile 97 | . 44 53 Critical Strikes 3 | . 1 2 Damage Taken 1496 | . 467 1029 Core 258 | . 74 184 Absorbed by Shields . | . . . Redirected to Shielding 5 | . 2 3 Core Remaining (%) 100 | 100 . . Volleys Fired 187 | 24 61 102 Largest 2 | 2 2 2 Hottest 148 | 40 136 148 Shots Fired 317 | 48 116 153 Gun 165 | 48 75 42 Cannon 111 | . 36 75 Launcher 18 | . 5 13 Special 23 | . . 23 Kinetic 115 | 48 62 5 Thermal 147 | . 49 98 Explosive 13 | . 5 8 Electromagnetic 42 | . . 42 Robot Hit Streak 24 | 8 12 24 Robot Miss Streak 5 | 5 3 2 Penetration Max . | . . . Secondary Targets . | . . . Shots Hit Robots 214 | 28 74 112 Core Hits 96 | 13 35 48 Critical Kills . | . . . Critical Parts Destroyed . | . . . Critical Strikes 2 | . 1 1 Burn 1 | . 1 . Corrupt 1 | . . 1 Melee Attacks . | . . . Impact . | . . . Slashing . | . . . Piercing . | . . . Sneak Attacks . | . . . Combat Hostiles . | . . . Follow-up Attacks . | . . . Damage Inflicted 3861 | 240 1172 2449 Guns 1185 | 240 449 496 Cannons 1453 | . 528 925 Explosions 1049 | . 195 854 Melee . | . . . Ramming . | . . . Kinetic 942 | 240 332 370 Thermal 1744 | . 645 1099 Explosive 679 | . 195 484 Electromagnetic 496 | . . 496 Impact . | . . . Slashing . | . . . Piercing . | . . . Highest Corruption . | . . . Average Corruption . | . . . Corruption Purged . | . . . Corruption Blocked . | . . . Overload Shots . | . . . Overflow Damage 45 | . 17 28 Projectiles 6 | . 6 . Explosions 39 | . 11 28 Melee . | . . . Knockbacks . | . . . Impact . | . . . Kinetic . | . . . Secondary . | . . . Self-Inflicted Damage 71 | . 37 34 Shots 3 | . 2 1 Rammed . | . . . Targets Rammed . | . . . Kicked . | . . . Crushed . | . . . Highest Temperature 272 | . 150 272 Average Temperature 45 | . 39 59 Received Heat Transfer 643 | . 123 520 Siege Activations . | . . . Martial Activations . | . . . Shielding Activations . | . . . Robots Disrupted . | . . . Combat Hostiles . | . . . Robots Corrupted . | . . . Combat Hostiles . | . . . Parts Fried 5 | . . 5 Impact Corruptions . | . . . Robots Melted . | . . . Combat Hostiles . | . . . Parts Melted 7 | . 4 3 Heat Transferred 3400 | . 1296 2104 Parts Sabotaged . | . . . Parts Stolen . | . . . Parts Stripped . | . . . Power Chain Reactions . | . . . Alert | -11 -10 -10 ------- Run | Yrd Mat Sub Maximum Alert Level . | . . . Low Security (%) 100 | 100 100 . Level 1 . | . . . Level 2 . | . . . Level 3 . | . . . Level 4 . | . . . Level 5 . | . . . High Security . | . . . Max Security . | . . . Peak Influence 197 | 15 197 . Initial . | . . . Average 69 | 3 75 . Influence Increases 844 | 40 654 150 Destroy 0b10 Robot/C 460 | . 340 120 Destroy 0b10 Robot/NC 70 | 40 30 . Destroy Leader 88 | . 88 . Successful Hack 20 | . 20 . Select Force Hacks 60 | . 60 . Disable Machine 15 | . 15 . Destroy Structure 56 | . 56 . Lose Combat Pursuer 75 | . 45 30 Influence Decreases 844 | 40 520 284 Entered New Map 65 | . . 65 Time Decay 769 | 40 520 209 Lost Part 10 | . . 10 Squads Dispatched 5 | . 5 . Investigation 3 | . 3 . Extermination . | . . . Reinforcement 2 | . 2 . Assault . | . . . Garrison . | . . . Intercept . | . . . Searches Triggered . | . . . Construction Impeded . | . . . Haulers Reinforced . | . . . Active Scanning Responses . | . . . Cargo Convoy Interrupts . | . . . Stealth | -11 -10 -10 --------- Run | Yrd Mat Sub Distress Signals . | . . . Communications Jammed . | . . . Distress Signals . | . . . Times Spotted 48 | . 28 20 Peak Tracking Total 4 | . 4 3 Tactical Retreats 5 | . 3 2 Traps | -11 -10 -10 ------- Run | Yrd Mat Sub Traps Triggered 1 | . 1 . Indirectly . | . . . Trap Hack Attempts . | . . . Triggered . | . . . Disarmed . | . . . Reprogrammed . | . . . Reused . | . . . Traps Extracted . | . . . Installed . | . . . Triggered . | . . . Machines | -11 -10 -10 ---------- Run | Yrd Mat Sub Machines Disabled 6 | . 1 5 Max in Single Turn 2 | . 1 2 Machines Repaired . | . . . Machines Dismantled . | . . . Machines Sabotaged . | . . . Overloaded Fab Kills . | . . . Hacking | -11 -10 -10 --------- Run | Yrd Mat Sub Machines Accessed 10 | . 8 2 Terminals 5 | . 5 . Fabricators . | . . . Repair Stations 1 | . 1 . Recycling Units 2 | . 2 . Scanalyzers . | . . . Garrison Access . | . . . Total Hacks 37 | . 23 14 Successful 27 | . 13 14 Failed 10 | . 10 . Catastrophic 1 | . 1 . Database Lockouts . | . . . Manual 20 | . 20 . Terminals 18 | . 18 . Fabricators . | . . . Repair Stations 3 | . 3 . Recycling Units 2 | . 2 . Scanalyzers . | . . . Garrison Access . | . . . Terminal Hacks 18 | . 4 14 Record 13 | . . 13 Part Schematic 1 | . 1 . Robot Analysis 3 | . 3 . Proto ID Catalog 1 | . . 1 Fabricator Hacks . | . . . Repair Station Hacks 1 | . 1 . Scan Component 1 | . 1 . Recycling Unit Hacks . | . . . Scanalyzer . | . . . Garrison Access Hacks . | . . . Unauthorized Hacks 8 | . 8 . Terminals 6 | . 6 . Botnet 2 | . 2 . Skim 4 | . 4 . Fabricators . | . . . Repair Stations . | . . . Recycling Units 2 | . 2 . Tunnel 2 | . 2 . Scanalyzers . | . . . Garrison Access . | . . . Data Cores Recovered . | . . . Used . | . . . Hacking Detections 6 | . 6 . Full Trace Events . | . . . Feedback Events . | . . . Feedback Blocked . | . . . Robot Schematics Acquired . | . . . Robots Built . | . . . Authchips . | . . . Time . | . . . Total Robot Build Rating . | . . . Part Schematics Acquired 1 | . 1 . Parts Built . | . . . Authchips . | . . . Time . | . . . Total Part Build Rating . | . . . Part Studies Acquired . | . . . Parts Repaired . | . . . Time . | . . . Parts Recycled . | . . . Recycled Matter . | . . . Retrieved Matter . | . . . Retrieved Components . | . . . Parts Scanalyzed . | . . . Part Schematics Acquired . | . . . Parts Damaged . | . . . Bothacking | -11 -10 -10 ------------ Run | Yrd Mat Sub Used RIF Installer . | . . . Robots Hacked . | . . . Non-combat . | . . . Combat . | . . . Robot Hacks Applied . | . . . Relay Couplers Released . | . . . Fabnet Peak Effective % . | . . . Robots Rewired . | . . . Allies Hacked . | . . . Hacks Repelled . | . . . Allies | -11 -10 -10 -------- Run | Yrd Mat Sub Total Allies . | . . . Largest Group . | . . . Highest-Rated Group . | . . . Highest-Rated Ally . | . . . Total Orders . | . . . Ally Attacks . | . . . Total Damage . | . . . Kills . | . . . Allies Corrupted . | . . . Allies Melted . | . . . Intel | -11 -10 -10 ------- Run | Yrd Mat Sub Active Infowar (turns) 1968 | 51 1562 355 Seismic 1968 | 51 1562 355 Robot Analysis Total 3 | . 3 . Derelict Logs Recovered 1 | . . 1 Drone Launches . | . . . Drone Recoveries . | . . . Exploration | -11 -10 -10 ------------- Run | Yrd Mat Sub Turns Passed 3807 | 164 1931 1712 Spaces Moved 2029 | 47 860 1122 Core 124 | . 124 . Treads 1033 | 15 736 282 Legs 32 | 32 . . Wheels 840 | . . 840 Hover . | . . . Flight . | . . . Fastest Speed 95 | 120 160 95 Average Speed 143 | 132 172 120 Slowest Speed 250 | 160 250 160 Overloaded Moves . | . . . Propulsion Burnouts . | . . . Robots Hopped . | . . . Potential Cave-ins . | . . . Cave-ins Triggered . | . . . Exploration Rate (%) 56 | 3 99 68 Regions Visited 2 Branch Regions 1 Pre-discovered Areas 3 | . 2 1 Known Exits Taken . | . . . Unknown Exits Taken 2 | 1 1 . Scrap Searched . | . . . Spaces Dug 69 | . 54 15 Terrain Destroyed 142 | . 69 73 Melee . | . . . Projectile 4 | . . 4 AOE 138 | . 69 69 Terrain Rammed . | . . . Walls Destroyed . | . . . Machines Disabled . | . . . Actions | -11 -10 -10 --------- Run | Yrd Mat Sub Total 2626 | 109 1194 1323 Wait 261 | 32 194 35 Move 2027 | 46 859 1122 Hop . | . . . Pick Up 32 | 2 17 13 Fast Attach 4 | 1 2 1 Attach 6 | . . 6 Detach 2 | . 1 1 Swap 72 | 3 39 30 Drop 35 | 1 21 13 Fire 187 | 24 61 102 Melee . | . . . Ram . | . . . Kick . | . . . Crush . | . . . Escape Stasis . | . . . Rewire . | . . . Trap . | . . . Miscellaneous . | . . . Route ------- -11/Scrapyard -10/Materials (discovered 6 exits: [*Mat x3] / [*Min x2] / *Sub) -10/Subcaves (discovered 3 exits: [*Mat] / [*Rec] / [*Scr]) History --------- Turn | Location | Event 15 | -11/Scrapyard | Discovered new exit (range 3) 165 | -11/Scrapyard | Entered Materials 316 | -10/Materials | Build established: Mutant 543 | -10/Materials | Discovered new exit (range 9) 1021 | -10/Materials | Discovered new exit (range 5) 1235 | -10/Materials | Discovered new exit (range 11) 1551 | -10/Materials | Discovered new exit (range 15) 1631 | -10/Materials | Discovered new exit (range 7) 2084 | -10/Materials | Discovered new exit (range 8) 2096 | -10/Materials | Entered Subcaves 2097 | -10/Subcaves | Approached by a straggling Scientist 2308 | -10/Subcaves | Core integrity fell below 50% 2406 | -10/Subcaves | Ambushed by angry Subdweller bent on revenge 2466 | -10/Subcaves | Build established: Scavenger-Mutant 2735 | -10/Subcaves | Ambushed by Subdwellers from Twisted Machinery 2781 | -10/Subcaves | Lost 3 parts (2n1w) 2823 | -10/Subcaves | Shifting Twisted Machinery released Mak. Power Source 2832 | -10/Subcaves | Shifting Twisted Machinery released Flamer 2960 | -10/Subcaves | Core integrity fell below 20% 2960 | -10/Subcaves | Discovered new exit (range 13) 3013 | -10/Subcaves | Visited 4L-MR0's lab 3025 | -10/Subcaves | Found Tower Shield 3380 | -10/Subcaves | Discovered new exit (range 10) 3482 | -10/Subcaves | Visited Clippyterm 3485 | -10/Subcaves | Learned Factory stockpile data 3485 | -10/Subcaves | Learned Factory garrison access intel 3598 | -10/Subcaves | Scientist uncovered a shortcut to Scraptown 3747 | -10/Subcaves | A swath of the cavern ceiling suddenly collapsed 3808 | -10/Subcaves | Destroyed by 61-GVP(R) with Subdweller Laser Last Messages --------------- then I'd have to kill you. CD-3ZP(c): "We're getting close, I can feel it." 03598_ CD-3ZP(c): "Hah, right again, there it is!" 03598_ CD-3ZP(c) exits level. 03676_ Sub. Monowheel shoots sparks and powers down. 03685_ Dropped Med. Storage Unit. 03685_ Dropped Hacking Suite. 03688_ Acquired Scrap Shield. 03691_ Dropped Core Shielding. 03692_ Acquired Adv. Beam Cannon. 03693_ Dropped Tower Shield. 03696_ Acquired Multitool. 03699_ Acquired Seismic Detector. A swath of the cavern ceiling suddenly collapses. 03768_ Acquired 22 matter. 03808_ F0-4G9(R): "SUBMAD!" Map ----- +----------------------------------------------------+ | | | | | | | | | ?????????????????????????????????????????????????? | | ?????????????????????????????????????????????????? | | ?????????????????????????????????????????????????? | | ?????????????????????????????????????????????????? | | ?????????????????????????????????????????????????? | | ?????????????????????????????????????????????????? | | ?????????????????????????????????????????????????? | | ?????????????????????????????????????????????????? | | ?????????????????????????????????????????????????? | | ?????????????????????????????????????????????????? | | ?????????????????????????????????????????????????? | | ?????????????????????????????????????????????????? | | ?????????????????????????????????????????????????? | | ?????????????????????????????????????????????????? | | ???##??????????????????????########??????????????? | | ?? #??????????????????##### ##?????????????? | | ?? ???????????????????# #?????????????? | | ?? ?????????????####### ## #?????????????? | | ?? #?####???????## ### ##??? ???????????? | | ? ### #???????# # ####?????? #??????????? | | ? ?# ##????### #????????????????????? | | ? #??# ##???# @ ##????????????????????? | | ####### ##### ##???????????????????? | | #""## #???????????????????? | | " #???????????????????? | | ## % #???????????????????? | | ## ###; #???????????????????? | | # ### ###?##% #??????????????????? | | ### #?### ##???? #??????????????????? | | ?## ##?## ##????? #??????????????????? | | ## ### ##?????? ###??????????????????? | | # ##??????? #????????????????????? | | # ##???????? ????????????????????? | | ## #????????? ????????????????????? | | ###### #?????????R"" ##???????????????????? | | ###### ####?????? "##????????????????????? | | #??????R????????????????????????? | | #??????????????????????????????? | | ## #??????????????????????????????? | | ##?# ##??????????????????????????????? | | ##???##???????????????????????????????? | | #?????????????????????????????????????? | | ##?????????????????????????????????????? | | #### #??????????????????????????????????????? | | #??## #?????????????????????????????????????? | | ##??## ##?????????????????????????????????????? | +----------------------------------------------------+ Best States ------------- Heat Dissipation 39 Energy Generation 15 Energy Capacity 250 Matter Stores 300 Matter Capacity 300 Sight Range 16 Terrain Scan Density 10 Armor Coverage 800 Core Shielding 20 Evasion (%) 55 Recoil Reduction 2 Item Schematics ----------------- Huge Storage Unit | -10/Materials | Hacked Robot Schematics ------------------ None Fabricated ------------ Nothing Repaired ---------- Nothing Studied --------- None Alien Tech Used ----------------- None Achievements -------------- Art Critic Do Not Disturb Challenges ------------ None Game ------ Seed ProjectilePlasmaArmor Manual? 0 Play Time 00:35:26 Cumulative 170.4 hours Start 2026.03.12 @ 11:19:01 End 2026.03.12 @ 11:55:32 Sessions 1 Manual Loads 0 Difficulty Rogue Special Mode None Game No. 113 Rogue 112 Adventurer 0 Explorer 1 Win Type - Total 15 Types 11/0/2/1/0/0/0/1/0/0 Lore% 56 Gallery% 58 Achievement% 54 Wizard Run 0 Options --------- Layout 2 ASCII 0 Keyboard 1 Movement Numpad Keybinds 0 Fullscreen 2 Font 24/Terminus Map View 50x44 Zoom Use 0% Tactical HUD 1 Map Filters NONE Filters NONE Steam 1 RUN: 232b6b1c-edeb-4363-b322-03e5a30f6e86